bitfinex/quotes_SOLUSD_20250425
["timestamp","ask_amount","ask_price","bid_price","bid_amount"]
[1745589187687,32.58180906,153.17,153.13,32.58180906]
[1745589188490,32.58180906,153.17,153.12,32.58180906]
[1745589188881,32.58180906,153.17,153.13,32.58180906]
[1745589189076,18.79181043,153.18,153.13,32.58180906]
[1745589189274,32.58180906,153.17,153.13,32.58180906]
[1745589189473,51.37361949,153.18,153.13,32.58180906]
[1745589189679,26.0,153.19,153.17,32.58180906]
[1745589189871,14.72,153.21,153.18,32.58180906]
[1745589190072,18.64964886,153.23,153.19,32.58180906]
[1745589190280,32.58180906,153.2,153.13,6.53036783]
[1745589190602,18.64964886,153.23,153.15,32.58180906]
[1745589190603,32.58180906,153.19,153.15,32.58180906]
[1745589190801,32.58180906,153.2,153.15,32.58180906]
[1745589191200,0.14216157,153.22,153.16,32.58180906]
[1745589191407,32.58180906,153.21,153.16,32.58180906]
[1745589192797,32.58180906,153.21,153.17,32.58180906]
[1745589193695,32.58180906,153.18,153.12,32.58180906]
[1745589193879,32.58180906,153.18,153.13,32.58180906]
[1745589194199,18.79181043,153.21,153.16,32.58180906]
[1745589194387,32.58180906,153.2,153.12,32.58180906]
[1745589194581,32.58180906,153.19,153.15,32.58180906]
[1745589194978,32.58180906,153.19,153.09,50.16830562]
[1745589194979,44.79181043,153.21,153.16,32.58180906]
[1745589195284,32.58180906,153.2,153.15,32.58180906]
[1745589195800,32.58180906,153.2,153.16,32.58180906]
[1745589196111,32.58180906,153.2,153.15,32.58180906]
[1745589196308,58.58180906,153.21,153.17,32.58180906]
[1745589196975,58.58180906,153.21,153.16,32.58180906]
[1745589197582,32.58180906,153.2,153.15,32.58180906]
[1745589198100,32.58180906,153.2,153.16,32.58180906]
[1745589198279,26.0,153.21,153.16,32.58180906]
[1745589198484,32.58180906,153.2,153.16,32.58180906]
[1745589199192,58.58180906,153.21,153.17,32.58180906]
[1745589199395,58.58180906,153.21,153.12,32.58180906]
[1745589199396,32.58180906,153.2,153.16,32.58180906]
[1745589200116,58.58180906,153.21,153.17,32.58180906]
[1745589200300,26.0,153.21,153.13,6.530399]
[1745589200493,58.58180906,153.21,153.17,32.58180906]
[1745589200812,58.58180906,153.21,153.13,6.530399]
[1745589200992,32.58180906,153.2,153.16,32.58180906]
[1745589201914,32.58180906,153.2,153.15,32.58180906]
[1745589202111,32.58180906,153.19,153.15,32.58180906]
[1745589202314,32.58180906,153.17,153.13,32.58180906]
[1745589202604,18.79181043,153.2,153.08,27.92444604]
[1745589202605,32.58180906,153.15,153.08,27.92444604]
[1745589202786,32.58180906,153.15,153.11,32.58180906]
[1745589203611,32.58180906,153.15,153.08,21.3921]
[1745589203785,32.58180906,153.12,153.08,14.76]
[1745589203985,32.58180906,153.12,153.08,47.34180906]
[1745589204209,0.14216157,153.14,153.08,14.76]
[1745589204516,32.58180906,153.09,153.05,32.58180906]
[1745589205110,32.58180906,153.09,153.04,32.58180906]
[1745589205423,32.58180906,153.05,153.02,14.75]
[1745589205719,32.58180906,153.05,153.02,0.03]
[1745589205924,32.58180906,153.04,153.02,0.03]
[1745589206716,6.53253916,153.08,153.02,0.03]
[1745589206717,26.0,153.05,153.02,0.03]
[1745589206918,32.58180906,153.03,153.02,0.03]
[1745589208006,51.37361949,153.03,153.02,0.03]
[1745589208808,58.58180906,153.03,153.02,0.03]
[1745589210494,77.37361949,153.03,153.02,0.03]
[1745589210712,26.14216157,153.03,153.02,0.03]
[1745589210903,58.72397063,153.03,153.02,0.03]
[1745589211703,58.58180906,153.03,153.02,0.03]
[1745589211902,32.58180906,153.03,153.02,0.03]
[1745589212522,32.72397063,153.03,153.02,0.03]
[1745589213119,0.14216157,153.06,153.02,0.03]
[1745589213423,32.58180906,153.03,153.02,0.03]
[1745589213831,26.0,153.05,153.02,0.03]
[1745589213832,32.58180906,153.05,153.02,0.03]
[1745589214618,58.58180906,153.06,153.02,32.61180906]
[1745589214923,32.58180906,153.06,153.02,32.61180906]
[1745589215123,32.58180906,153.04,153.02,0.03]
[1745589215707,32.58180906,153.05,153.02,0.03]
[1745589215912,6.2764,153.09,153.02,32.61180906]
[1745589215913,58.58180906,153.07,153.02,32.61180906]
[1745589216109,26.0,153.07,153.02,0.03]
[1745589216312,32.58180906,153.05,153.02,0.03]
[1745589217024,26.0,153.07,153.02,0.03]
[1745589217025,32.58180906,153.06,153.02,32.61180906]
[1745589217217,32.58180906,153.07,153.03,32.58180906]
[1745589217415,32.58180906,153.09,153.05,32.58180906]
[1745589218741,32.58180906,153.08,153.02,0.03]
[1745589218922,32.58180906,153.08,153.04,32.58180906]
[1745589219121,32.58180906,153.08,153.02,0.03]
[1745589219428,58.58180906,153.1,153.05,32.58180906]
[1745589219733,20.30124886,153.14,153.08,32.58180906]
[1745589220038,32.58180906,153.14,153.09,32.58180906]
[1745589220242,32.58180906,153.14,153.1,32.58180906]
[1745589220422,26.0,153.15,153.11,34.19790906]
[1745589220760,82.8,153.23,153.11,34.19790906]
[1745589220761,28.07310234,153.27,153.12,6.53069126]
[1745589220913,26.0,153.26,153.15,26.0]
[1745589221114,32.58180906,153.22,153.15,26.0]
[1745589221652,32.58180906,153.23,153.15,26.0]
[1745589221819,32.58180906,153.23,153.18,32.58180906]
[1745589222143,32.58180906,153.23,153.15,26.0]
[1745589222341,18.64964886,153.26,153.19,32.58180906]
[1745589222641,32.58180906,153.25,153.16,6.52911987]
[1745589222817,32.58180906,153.23,153.15,26.0]
[1745589223141,18.64964886,153.26,153.19,32.58180906]
[1745589223333,32.58180906,153.23,153.19,32.58180906]
[1745589223536,32.58180906,153.23,153.15,26.0]
[1745589223537,18.64964886,153.26,153.21,32.58180906]
[1745589223741,32.58180906,153.25,153.21,32.58180906]
[1745589224050,32.58180906,153.24,153.17,26.0]
[1745589224341,32.58180906,153.24,153.2,32.58180906]
[1745589224550,18.64964886,153.26,153.17,26.0]
[1745589224551,18.64964886,153.26,153.21,32.58180906]
[1745589224841,0.063,153.27,153.23,32.58180906]
[1745589225013,0.063,153.27,153.2,32.58180906]
[1745589225328,0.063,153.27,153.26,32.58180906]
[1745589226040,0.063,153.27,153.23,26.0]
[1745589226247,0.063,153.27,153.25,32.58180906]
[1745589226657,0.063,153.27,153.26,32.58180906]
[1745589227133,0.063,153.27,153.26,58.58180906]
[1745589229246,0.063,153.27,153.26,65.10666877]
[1745589229424,0.063,153.27,153.26,58.58180906]
[1745589230441,0.063,153.27,153.23,50.26604157]
[1745589230753,0.063,153.27,153.23,43.74]
[1745589230951,0.063,153.27,153.24,32.58180906]
[1745589231127,0.063,153.27,153.23,32.58180906]
[1745589231847,0.063,153.27,153.18,37.69452309]
[1745589231848,32.58180906,153.25,153.18,17.74]
[1745589232033,32.58180906,153.25,153.2,32.58180906]
[1745589232233,32.58180906,153.25,153.18,17.74]
[1745589232234,32.58180906,153.26,153.21,32.58180906]
[1745589232448,32.64480906,153.27,153.22,32.58180906]
[1745589232649,32.58180906,153.26,153.22,32.58180906]
[1745589232852,32.58180906,153.26,153.18,24.26815868]
[1745589233063,32.58180906,153.26,153.22,32.58180906]
[1745589233360,0.063,153.27,153.25,32.58180906]
[1745589233549,0.063,153.27,153.2,58.58180906]
[1745589233550,0.063,153.27,153.2,65.10908998]
[1745589233749,0.063,153.27,153.24,32.58180906]
[1745589233957,0.063,153.27,153.2,58.58180906]
[1745589234158,32.64480906,153.27,153.22,32.58180906]
[1745589234329,32.64480906,153.27,153.23,32.58180906]
[1745589234528,32.64480906,153.27,153.22,32.58180906]
[1745589234729,32.64480906,153.27,153.23,32.58180906]
[1745589234948,0.063,153.27,153.23,32.58180906]
[1745589235461,0.063,153.27,153.24,32.58180906]
[1745589235760,0.063,153.27,153.23,32.58180906]
[1745589236255,0.063,153.27,153.24,32.58180906]
[1745589236559,0.063,153.27,153.26,32.58180906]
[1745589236856,0.063,153.27,153.25,32.58180906]
[1745589237435,0.063,153.27,153.26,32.58180906]
[1745589240564,0.063,153.27,153.26,97.68847783]
[1745589240927,0.063,153.27,153.26,65.10666877]
[1745589241331,0.063,153.27,153.26,58.58180906]
[1745589241552,0.063,153.27,153.26,65.10666877]
[1745589243545,0.063,153.29,153.27,18.64964886]
[1745589243872,0.063,153.34,153.27,18.64964886]
[1745589243873,0.063,153.34,153.32,26.0]
[1745589244185,0.063,153.34,153.33,32.58180906]
[1745589244485,0.063,153.34,153.33,33.88588461]
[1745589244969,0.063,153.34,153.33,52.67769504]
[1745589245688,0.063,153.36,153.33,85.2595041]
[1745589245879,0.063,153.36,153.35,97.68464844]
[1745589246172,0.063,153.36,153.35,58.58180906]
[1745589247058,0.063,153.36,153.35,26.0]
[1745589247371,0.063,153.36,153.35,58.58180906]
[1745589249475,0.03,153.41,153.38,26.0]
[1745589249650,0.03,153.41,153.4,32.51953246]
[1745589251555,0.03,153.41,153.38,58.58180906]
[1745589252066,0.03,153.41,153.38,32.58180906]
[1745589252446,0.03,153.41,153.39,32.58180906]
[1745589252644,0.03,153.41,153.36,43.74]
[1745589252863,0.03,153.41,153.38,32.58180906]
[1745589253259,0.03,153.41,153.4,32.58180906]
[1745589255851,0.03,153.41,153.39,32.58180906]
[1745589256066,0.03,153.41,153.4,32.58180906]
[1745589256891,32.61180906,153.41,153.36,17.74]
[1745589257115,32.58180906,153.39,153.32,1.527]
[1745589257319,32.58180906,153.37,153.33,32.58180906]
[1745589257481,32.58180906,153.37,153.32,32.58180906]
[1745589257810,32.58180906,153.36,153.32,32.58180906]
[1745589258010,32.58180906,153.36,153.3,43.08]
[1745589258011,32.58180906,153.37,153.33,32.58180906]
[1745589258167,32.58180906,153.38,153.34,32.58180906]
[1745589258368,32.5535,153.41,153.35,32.58180906]
[1745589258590,6.5535,153.41,153.37,32.58180906]
[1745589258875,0.03,153.41,153.38,32.58180906]
[1745589259477,0.03,153.41,153.39,32.58180906]
[1745589260095,0.03,153.41,153.4,32.58180906]
[1745589260889,0.03,153.41,153.4,39.10071388]
[1745589261087,0.03,153.41,153.4,40.40397972]
[1745589261774,0.03,153.41,153.4,32.58180906]
[1745589262972,0.03,153.41,153.37,1.30359203]
[1745589263176,0.03,153.41,153.4,32.58180906]
[1745589265091,0.03,153.41,153.4,39.10071388]
[1745589265283,0.03,153.41,153.4,83.89252431]
[1745589265700,0.063,153.45,153.43,26.0]
[1745589265870,0.063,153.45,153.44,32.58180906]
[1745589266301,0.063,153.45,153.4,1.30321486]
[1745589266502,0.063,153.45,153.44,32.58180906]
[1745589267096,0.063,153.45,153.42,26.0]
[1745589267299,0.063,153.45,153.44,32.58180906]
[1745589269283,0.063,153.45,153.44,65.16361812]
[1745589269481,0.063,153.45,153.44,73.37628511]
[1745589269685,2.40512682,153.48,153.47,26.0]
[1745589269889,2.40512682,153.48,153.47,58.58180906]
[1745589270403,2.40512682,153.48,153.47,59.88460073]
[1745589270404,4.81241571,153.48,153.47,59.88460073]
[1745589270603,4.81241571,153.48,153.47,85.19234261]
[1745589271884,0.03,153.5,153.48,18.79181043]
[1745589272103,0.03,153.5,153.49,59.88432851]
[1745589272514,4.81080251,153.56,153.52,26.0]
[1745589272670,4.81080251,153.56,153.55,32.58180906]
[1745589272876,0.03,153.57,153.55,32.58180906]
[1745589273099,0.03,153.57,153.56,32.58180906]
[1745589273624,0.03,153.57,153.55,32.58180906]
[1745589273790,0.03,153.57,153.54,32.58180906]
[1745589275730,0.03,153.57,153.53,32.58180906]
[1745589276116,0.03,153.57,153.54,32.58180906]
[1745589276317,0.03,153.57,153.5,32.58180906]
[1745589276318,32.58180906,153.55,153.5,32.58180906]
[1745589276520,32.58180906,153.53,153.49,32.58180906]
[1745589276829,32.58180906,153.53,153.46,32.58180906]
[1745589276830,32.58180906,153.5,153.46,32.58180906]
[1745589277333,32.58180906,153.53,153.48,32.58180906]
[1745589277632,32.58180906,153.53,153.49,32.58180906]
[1745589278316,32.58180906,153.53,153.47,26.0]
[1745589278317,32.58180906,153.52,153.48,32.58180906]
[1745589278520,32.58180906,153.53,153.48,32.58180906]
[1745589278711,7.9875,153.54,153.49,32.58180906]
[1745589278911,32.58180906,153.53,153.49,32.58180906]
[1745589279307,32.58180906,153.55,153.51,32.58180906]
[1745589279596,0.03,153.57,153.53,32.58180906]
[1745589279818,0.03,153.57,153.52,32.58180906]
[1745589280020,32.61180906,153.57,153.52,32.58180906]
[1745589280422,32.58180906,153.56,153.52,32.58180906]
[1745589281325,32.61180906,153.57,153.52,32.58180906]
[1745589281626,32.58180906,153.56,153.52,32.58180906]
[1745589282009,32.61180906,153.57,153.52,32.58180906]
[1745589282449,32.58180906,153.55,153.51,32.58180906]
[1745589283219,32.58180906,153.55,153.49,17.06]
[1745589283449,32.58180906,153.53,153.49,49.64180906]
[1745589283631,32.58180906,153.52,153.49,17.06]
[1745589284454,32.58180906,153.51,153.49,17.06]
[1745589284746,32.58180906,153.52,153.47,32.58180906]
[1745589284944,6.51316162,153.54,153.47,32.58180906]
[1745589285147,32.58180906,153.51,153.47,32.58180906]
[1745589285444,32.58180906,153.49,153.44,219.76]
[1745589285617,32.58180906,153.49,153.44,252.34180906]
[1745589285818,18.79181043,153.53,153.44,252.34180906]
[1745589285819,32.58180906,153.48,153.44,16.44]
[1745589286118,7.8569,153.5,153.44,16.44]
[1745589286119,32.58180906,153.46,153.44,16.44]
[1745589286318,32.58180906,153.47,153.44,16.44]
[1745589286520,32.58180906,153.48,153.44,16.44]
[1745589286747,32.58180906,153.47,153.44,16.44]
[1745589287431,32.58180906,153.46,153.41,32.58180906]
[1745589290555,32.58180906,153.46,153.42,32.58180906]
[1745589290755,32.58180906,153.47,153.42,32.58180906]
[1745589290960,32.58180906,153.49,153.44,32.58180906]
[1745589291157,18.64964886,153.53,153.47,32.58180906]
[1745589291460,2.41325088,153.52,153.51,32.58180906]
[1745589292044,2.44325088,153.57,153.51,32.58180906]
[1745589292242,2.44325088,153.57,153.53,32.58180906]
[1745589292444,35.02505994,153.57,153.53,32.58180906]
[1745589292648,35.02505994,153.57,153.47,27.30274343]
[1745589292850,35.02505994,153.57,153.53,32.58180906]
[1745589293033,32.61180906,153.57,153.52,32.58180906]
[1745589293638,4.82862432,153.56,153.52,32.58180906]
[1745589293954,4.82862432,153.56,153.53,32.58180906]
[1745589294149,37.41043338,153.56,153.49,1.30261502]
[1745589294349,37.41043338,153.56,153.51,32.58180906]
[1745589295066,32.58180906,153.56,153.51,32.58180906]
[1745589296963,32.58180906,153.56,153.46,17.9516]
[1745589296964,65.16361812,153.52,153.42,1.5741]
[1745589297255,32.58180906,153.46,153.42,33.15590906]
[1745589297472,32.58180906,153.46,153.38,16.44]
[1745589297647,32.58180906,153.44,153.38,22.95959075]
[1745589297839,32.58180906,153.44,153.39,58.58180906]
[1745589298035,32.58180906,153.44,153.4,32.58180906]
[1745589298264,18.79181043,153.49,153.38,16.44]
[1745589298467,32.58180906,153.44,153.4,32.58180906]
[1745589298840,32.58180906,153.44,153.39,32.58180906]
[1745589299040,32.58180906,153.43,153.39,32.58180906]
[1745589299670,32.58180906,153.43,153.38,49.02180906]
[1745589299969,32.58180906,153.43,153.38,16.44]
[1745589300145,32.58180906,153.43,153.39,32.58180906]
[1745589300343,32.58180906,153.44,153.39,32.58180906]
[1745589300544,1.6232,153.5,153.43,32.58180906]
[1745589300545,34.20500906,153.5,153.43,32.58180906]
[1745589300765,32.58180906,153.48,153.44,32.58180906]
[1745589300975,32.58180906,153.48,153.43,32.58180906]
[1745589301187,1.6232,153.5,153.41,26.0]
[1745589301188,32.58180906,153.46,153.41,26.0]
[1745589301472,32.58180906,153.42,153.34,82.8316]
[1745589301775,32.58180906,153.42,153.37,32.58180906]
[1745589301972,32.58180906,153.42,153.38,32.58180906]
[1745589302170,32.58180906,153.43,153.38,32.58180906]
[1745589302346,32.58180906,153.44,153.37,26.0]
[1745589302548,32.58180906,153.44,153.39,32.58180906]
[1745589302760,32.58180906,153.47,153.42,32.58180906]
[1745589302972,32.58180906,153.48,153.43,32.58180906]
[1745589303175,46.27284886,153.5,153.43,32.58180906]
[1745589303386,32.58180906,153.47,153.43,32.58180906]
[1745589303564,46.27284886,153.5,153.41,6.51835629]
[1745589303565,32.58180906,153.45,153.41,32.58180906]
[1745589303879,32.58180906,153.43,153.39,49.02180906]
[1745589304054,32.58180906,153.44,153.39,49.02180906]
[1745589304259,32.58180906,153.44,153.4,32.58180906]
[1745589304864,32.58180906,153.43,153.39,16.44]
[1745589305065,32.58180906,153.43,153.38,58.58180906]
[1745589305267,32.58180906,153.42,153.35,6.52094221]
[1745589305454,32.58180906,153.41,153.36,58.58180906]
[1745589305773,32.58180906,153.42,153.38,32.58180906]
[1745589306179,32.58180906,153.42,153.37,32.58180906]
[1745589306672,32.58180906,153.41,153.36,32.58180906]
[1745589306982,32.58180906,153.39,153.35,32.58180906]
[1745589307176,32.58180906,153.39,153.34,49.08480906]
[1745589307356,32.58180906,153.39,153.34,16.503]
[1745589307560,32.58180906,153.39,153.34,49.08480906]
[1745589307751,1.69796157,153.42,153.34,16.503]
[1745589307752,32.58180906,153.38,153.34,16.503]
[1745589308061,32.58180906,153.37,153.34,0.063]
[1745589308380,32.58180906,153.4,153.34,0.063]
[1745589308768,32.58180906,153.4,153.35,32.58180906]
[1745589308953,32.58180906,153.39,153.35,32.58180906]
[1745589309659,32.58180906,153.39,153.34,32.64480906]
[1745589309857,32.58180906,153.39,153.35,32.58180906]
[1745589310062,32.58180906,153.4,153.35,32.58180906]
[1745589310255,6.0657,153.43,153.39,32.58180906]
[1745589310472,18.64964886,153.45,153.4,32.58180906]
[1745589310881,2.4183354,153.44,153.41,32.58180906]
[1745589311079,2.4183354,153.44,153.36,58.58180906]
[1745589311080,7.25526025,153.44,153.43,32.58180906]
[1745589311654,6.1439,153.47,153.43,32.58180906]
[1745589311849,6.1439,153.47,153.4,6.51876355]
[1745589311850,6.1439,153.47,153.44,32.58180906]
[1745589312163,6.1439,153.47,153.43,32.58180906]
[1745589312363,45.24176752,153.47,153.43,32.58180906]
[1745589312573,32.58180906,153.44,153.4,32.58180906]
[1745589313789,6.1439,153.47,153.41,32.58180906]
[1745589313996,32.58180906,153.45,153.41,32.58180906]
[1745589314185,32.58180906,153.44,153.4,32.58180906]
[1745589314391,32.58180906,153.44,153.39,32.58180906]
[1745589314564,32.58180906,153.43,153.39,32.58180906]
[1745589315593,32.58180906,153.43,153.38,32.58180906]
[1745589315889,32.58180906,153.42,153.38,32.58180906]
[1745589316196,32.58180906,153.41,153.37,32.58180906]
[1745589316390,6.51776033,153.43,153.37,32.58180906]
[1745589316391,32.58180906,153.42,153.37,32.58180906]
[1745589316590,32.58180906,153.43,153.38,32.58180906]
[1745589316889,32.58180906,153.45,153.4,32.58180906]
[1745589317071,48.52180906,153.46,153.41,32.58180906]
[1745589317390,32.58180906,153.45,153.4,32.58180906]
[1745589318159,39.09859802,153.45,153.4,32.58180906]
[1745589318363,32.58180906,153.45,153.4,32.58180906]
[1745589318558,16.28871328,153.49,153.36,39.10238992]
[1745589318559,16.28490389,153.52,153.43,32.58180906]
[1745589318786,34.14210906,153.5,153.46,32.58180906]
[1745589319172,34.14210906,153.5,153.39,27.3034892]
[1745589319173,34.14210906,153.5,153.45,32.58180906]
[1745589320296,32.58180906,153.49,153.45,32.58180906]
[1745589320681,6.3691,153.52,153.47,32.58180906]
[1745589320898,38.95090906,153.52,153.48,32.58180906]
[1745589321073,7.25901881,153.51,153.49,32.58180906]
[1745589321408,7.25901881,153.51,153.42,26.0]
[1745589321585,7.25901881,153.51,153.46,32.58180906]
[1745589321586,32.58180906,153.5,153.46,32.58180906]
[1745589322395,32.58180906,153.5,153.45,32.58180906]
[1745589323192,32.58180906,153.5,153.46,32.58180906]
[1745589324002,32.58180906,153.5,153.45,32.58180906]
[1745589324968,18.67964886,153.53,153.46,32.58180906]
[1745589325202,0.03,153.53,153.5,32.58180906]
[1745589325489,0.03,153.53,153.49,32.58180906]
[1745589325490,2.45012828,153.53,153.49,32.58180906]
[1745589325684,41.54539794,153.53,153.49,32.58180906]
[1745589325881,32.58180906,153.52,153.47,32.58180906]
[1745589326390,32.58180906,153.52,153.43,1.30294934]
[1745589326391,32.58180906,153.52,153.48,32.58180906]
[1745589326896,32.58180906,153.52,153.47,32.58180906]
[1745589327612,39.09572552,153.52,153.47,32.58180906]
[1745589327810,32.58180906,153.51,153.47,32.58180906]
[1745589327987,32.58180906,153.51,153.46,32.58180906]
[1745589328502,32.58180906,153.5,153.46,32.58180906]
[1745589329011,32.58180906,153.51,153.47,32.58180906]
[1745589329210,0.03,153.53,153.5,32.58180906]
[1745589329502,0.03,153.53,153.51,32.58180906]
[1745589329673,2.45189673,153.53,153.5,32.58180906]
[1745589329874,2.45189673,153.53,153.49,32.58180906]
[1745589330297,35.03370579,153.53,153.49,32.58180906]
[1745589330690,4.8434961,153.52,153.48,32.58180906]
[1745589331074,4.8434961,153.52,153.5,32.58180906]
[1745589331502,4.8734961,153.53,153.49,32.58180906]
[1745589331776,4.8734961,153.53,153.51,32.58180906]
[1745589332192,0.03,153.53,153.51,32.58180906]
[1745589332884,0.03,153.53,153.52,32.58180906]
[1745589333904,0.03,153.53,153.48,7.8178902]
[1745589334211,0.03,153.53,153.52,32.58180906]
[1745589337213,0.03,153.53,153.52,39.09561833]
[1745589337899,0.03,153.53,153.52,71.67742739]
[1745589339407,0.03,153.53,153.52,97.67742739]
[1745589339601,0.03,153.53,153.52,119.39337358]
[1745589339798,30.0,153.55,153.52,1.6219]
[1745589340104,30.0,153.55,153.53,32.58180906]
[1745589340307,30.0,153.55,153.52,26.0]
[1745589340612,30.0,153.55,153.54,32.58180906]
[1745589341439,30.0,153.55,153.52,32.58180906]
[1745589341937,30.0,153.55,153.54,32.58180906]
[1745589342713,30.0,153.55,153.5,33.81700258]
[1745589343020,30.0,153.55,153.54,32.58180906]
[1745589343611,30.0,153.55,153.54,39.09476985]
[1745589344753,30.0,153.55,153.54,32.58180906]
[1745589345043,30.0,153.55,153.54,39.09476985]
[1745589346040,30.0,153.55,153.54,32.58180906]
[1745589346213,30.0,153.55,153.53,41.44]
[1745589346615,30.0,153.55,153.54,32.58180906]
[1745589346916,30.0,153.55,153.53,48.02180906]
[1745589347620,30.0,153.55,153.53,15.44]
[1745589349627,30.0,153.55,153.54,32.58180906]
[1745589350952,30.0,153.55,153.54,65.09476985]
[1745589351155,30.0,153.55,153.54,91.76396781]
[1745589353030,30.0,153.55,153.54,72.97215738]
[1745589354437,30.0,153.55,153.54,91.76396781]
[1745589355651,0.03,153.57,153.56,46.42081043]
[1745589355825,0.03,153.57,153.56,80.30442177]
[1745589358864,0.03,153.61,153.6,83.95542855]
[1745589359234,0.03,153.61,153.6,85.25693219]
[1745589359858,0.03,153.61,153.6,91.76734885]
[1745589360433,0.03,153.62,153.6,91.76734885]
[1745589360632,0.063,153.65,153.64,26.0]
[1745589360840,0.063,153.65,153.64,78.67481019]
[1745589361380,0.063,153.65,153.64,59.88299976]
[1745589362040,0.063,153.65,153.64,66.39172144]
[1745589363167,0.063,153.65,153.64,59.88299976]
[1745589363457,0.063,153.65,153.61,21.20086534]
[1745589363458,0.063,153.65,153.63,48.02180906]
[1745589364037,0.063,153.65,153.64,32.58180906]
[1745589364465,0.063,153.65,153.63,48.02180906]
[1745589365252,32.64480906,153.65,153.63,15.44]
[1745589365455,32.64480906,153.65,153.6,32.58180906]
[1745589365964,0.063,153.65,153.62,32.58180906]
[1745589366340,32.64480906,153.65,153.58,47.95108865]
[1745589366533,32.58180906,153.64,153.59,32.58180906]
[1745589366945,32.58180906,153.63,153.58,15.44]
[1745589367156,32.58180906,153.63,153.59,32.58180906]
[1745589367368,32.58180906,153.61,153.58,15.44]
[1745589369567,6.50941478,153.63,153.55,0.063]
[1745589369568,32.58180906,153.59,153.55,0.063]
[1745589369871,6.1529,153.59,153.55,0.063]
[1745589370169,32.58180906,153.57,153.55,0.063]
[1745589370339,32.58180906,153.56,153.55,0.063]
[1745589370541,32.58180906,153.57,153.55,0.063]
[1745589370737,32.58180906,153.58,153.55,0.063]
[1745589370969,32.58180906,153.61,153.56,32.58180906]
[1745589371275,1.52,153.62,153.58,32.58180906]
[1745589371566,0.063,153.65,153.61,32.58180906]
[1745589371739,0.063,153.65,153.63,32.58180906]
[1745589371941,0.063,153.65,153.62,32.58180906]
[1745589374081,0.063,153.65,153.61,32.58180906]
[1745589374571,32.58180906,153.64,153.6,32.58180906]
[1745589374938,32.58180906,153.64,153.59,15.44]
[1745589375283,32.58180906,153.63,153.59,15.44]
[1745589377667,32.58180906,153.63,153.59,48.02180906]
[1745589378363,32.58180906,153.64,153.59,48.02180906]
[1745589378566,2.41965525,153.63,153.59,48.02180906]
[1745589378779,35.00146431,153.63,153.59,48.02180906]
[1745589379257,32.58180906,153.63,153.59,48.02180906]
[1745589379742,32.58180906,153.64,153.59,48.02180906]
[1745589380163,4.84079235,153.63,153.59,48.02180906]
[1745589380963,4.84079235,153.63,153.6,32.58180906]
[1745589381291,4.84079235,153.63,153.62,32.58180906]
[1745589381481,0.063,153.65,153.64,26.0]
[1745589381651,0.063,153.65,153.64,59.883153]
[1745589382960,0.063,153.65,153.64,58.58180906]
[1745589383168,0.063,153.65,153.64,32.58180906]
[1745589383570,0.063,153.65,153.61,26.0]
[1745589383812,0.063,153.65,153.62,32.58180906]
[1745589383955,0.063,153.65,153.61,32.58180906]
[1745589384162,0.063,153.65,153.62,32.58180906]
[1745589384768,0.063,153.65,153.59,21.95082775]
[1745589384769,0.063,153.65,153.63,32.58180906]
[1745589384973,0.063,153.65,153.64,32.58180906]
[1745589387055,0.063,153.65,153.63,32.58180906]
[1745589387784,0.063,153.65,153.64,32.58180906]
[1745589388869,0.063,153.65,153.62,32.58180906]
[1745589389469,0.063,153.65,153.63,32.58180906]
[1745589390382,0.063,153.65,153.62,32.58180906]
[1745589390572,32.64480906,153.65,153.61,32.58180906]
[1745589392888,0.063,153.65,153.62,32.58180906]
[1745589393067,0.063,153.65,153.64,32.58180906]
[1745589394587,0.063,153.65,153.64,40.39208636]
[1745589394974,0.063,153.65,153.64,66.39208636]
[1745589395176,0.03,153.66,153.65,44.79181043]
[1745589395366,0.03,153.66,153.65,98.98191757]
[1745589395686,0.03,153.66,153.65,131.56372663]
[1745589395903,0.03,153.68,153.67,44.64964886]
[1745589396070,0.03,153.72,153.67,111.25633174]
[1745589396277,0.03,153.72,153.7,32.58180906]
[1745589399510,0.03,153.72,153.66,1.30103802]
[1745589399511,0.03,153.72,153.66,7.80888445]
[1745589399801,0.03,153.72,153.69,32.58180906]
[1745589400192,0.03,153.72,153.7,32.58180906]
[1745589403202,0.03,153.72,153.7,39.08798993]
[1745589404976,0.03,153.72,153.7,57.87980036]